fUSD/lending_fUSD_20250103
["ID","MTS","AMOUNT","RATE_DAILY","PERIOD"]
[347591953,1735935035109,-500.0,0.00011879,2]
[347591954,1735935035119,-335.24,0.00011879,2]
[347591955,1735935035129,-500.0,0.00011879,2]
[347591956,1735935035141,-500.0,0.00011879,2]
[347591957,1735935035150,-500.0,0.00011879,2]
[347591958,1735935035160,-500.0,0.00011879,2]
[347591959,1735935035169,-500.0,0.00011879,2]
[347591960,1735935035179,-500.0,0.00011879,2]
[347591961,1735935035189,-500.0,0.00011879,2]
[347591962,1735935035199,-176.02,0.00011879,2]
[347591963,1735935035209,-249.16,0.00011879,2]
[347591964,1735935035218,-500.0,0.00011879,2]
[347591965,1735935035228,-500.0,0.00011879,2]
[347591966,1735935035238,-500.0,0.00011879,2]
[347591967,1735935035248,-500.0,0.00011879,2]
[347591968,1735935035258,-509.42,0.00011879,2]
[347591969,1735935035267,-257.21,0.00011879,2]
[347591970,1735935035277,-500.0,0.00011879,2]
[347591971,1735935035289,-500.0,0.00011879,2]
[347591972,1735935035299,-500.0,0.00011879,2]
[347591973,1735935035310,-500.0,0.00011879,2]
[347591974,1735935035320,-193.3,0.00011879,2]
[347591975,1735935035330,-466.13,0.00011879,2]
[347591977,1735935035339,-500.0,0.00011879,2]
[347591979,1735935035348,-500.0,0.00011879,2]
[347591981,1735935035358,-500.0,0.00011879,2]
[347591983,1735935035368,-500.0,0.00011879,2]
[347591985,1735935035378,-266.48,0.00011879,2]
[347591986,1735935035387,-500.0,0.00011879,2]
[347591989,1735935035399,-500.0,0.00011879,2]
[347591991,1735935035408,-636.49,0.00011879,2]
[347591993,1735935035418,-500.0,0.00011879,2]
[347591995,1735935035427,-500.0,0.00011879,2]
[347591997,1735935035436,-500.0,0.00011879,2]
[347591999,1735935035446,-500.0,0.00011879,2]
[347592000,1735935035455,-500.0,0.00011879,2]
[347592002,1735935035465,-500.0,0.00011879,2]
[347592004,1735935035475,-500.0,0.00011879,2]
[347592006,1735935035485,-500.0,0.00011879,2]
[347592008,1735935035494,-500.0,0.00011879,2]
[347592010,1735935035504,-500.0,0.00011879,2]
[347592012,1735935035517,-246.44,0.00011879,2]
[347592014,1735935035527,-500.0,0.00011879,2]
[347592016,1735935035537,-500.0,0.00011879,2]
[347592018,1735935035546,-500.0,0.00011879,2]
[347592020,1735935035556,-500.0,0.00011879,2]
[347592022,1735935035566,-500.0,0.00011879,2]
[347592024,1735935035576,-500.0,0.00011879,2]
[347592026,1735935035585,-500.0,0.00011879,2]
[347592028,1735935035595,-533.85,0.00011879,2]
[347592030,1735935035604,-575.26,0.00011879,2]
[347592032,1735935035614,-500.0,0.00011879,2]
[347592034,1735935035623,-500.0,0.00011879,2]
[347592036,1735935035633,-524.67,0.00011879,2]
[347592038,1735935035648,-500.0,0.00011879,2]
[347592040,1735935035658,-500.0,0.00011879,2]
[347592042,1735935035669,-500.0,0.00011879,2]
[347592044,1735935035680,-500.0,0.00011879,2]
[347592046,1735935035689,-500.0,0.00011879,2]
[347592049,1735935035699,-500.0,0.00011879,2]
[347592051,1735935035709,-500.0,0.00011879,2]
[347592053,1735935035720,-500.0,0.00011879,2]
[347592055,1735935035729,-500.0,0.00011879,2]
[347592056,1735935035739,-500.0,0.00011879,2]
[347592058,1735935035749,-500.0,0.00011879,2]
[347592061,1735935035759,-500.0,0.00011879,2]
[347592062,1735935035768,-500.0,0.00011879,2]
[347592064,1735935035777,-500.0,0.00011879,2]
[347592067,1735935035787,-500.0,0.00011879,2]
[347592069,1735935035797,-613.59,0.00011879,2]
[347592071,1735935035806,-291.664876,0.00011879,2]
[347592072,1735935035816,-500.0,0.00011879,2]
[347592074,1735935035826,-500.0,0.00011879,2]
[347592077,1735935035836,-500.0,0.00011879,2]
[347592079,1735935035845,-500.0,0.00011879,2]
[347592081,1735935035855,-500.0,0.00011879,2]
[347592082,1735935035864,-500.0,0.00011879,2]
[347592085,1735935035874,-1769.02,0.00011879,2]
[347592087,1735935035883,-264.02065,0.00011879,2]
[347592088,1735935035894,-500.0,0.00011879,2]
[347592090,1735935035904,-500.0,0.00011879,2]
[347592093,1735935035913,-500.0,0.00011879,2]
[347592095,1735935035925,-609.55,0.00011879,2]
[347592097,1735935035935,-156.35,0.00011879,2]
[347592099,1735935035944,-500.0,0.00011879,2]
[347592101,1735935035953,-1167.71,0.00011879,2]
[347592103,1735935035963,-277.76,0.00011879,2]
[347592105,1735935035972,-500.0,0.00011879,2]
[347592107,1735935035982,-500.0,0.00011879,2]
[347592109,1735935035991,-500.0,0.00011879,2]
[347592111,1735935036002,-500.0,0.00011879,2]
[347592113,1735935036012,-500.0,0.00011879,2]
[347592115,1735935036021,-500.0,0.00011879,2]
[347592117,1735935036030,-500.0,0.00011879,2]
[347592119,1735935036040,-592.17,0.00011879,2]
[347592121,1735935036050,-500.0,0.00011879,2]
[347592123,1735935036059,-566.17,0.00011879,2]
[347592125,1735935036069,-500.0,0.00011879,2]
[347592127,1735935036079,-500.0,0.00011879,2]
[347592129,1735935036088,-500.0,0.00011879,2]
[347592131,1735935036099,-500.0,0.00011879,2]
[347592133,1735935036110,-500.0,0.00011879,2]
[347592135,1735935036121,-500.0,0.00011879,2]
[347592137,1735935036131,-500.0,0.00011879,2]
[347592139,1735935036144,-284.76,0.00011879,2]
[347592141,1735935036153,-500.0,0.00011879,2]
[347592143,1735935036164,-500.0,0.00011879,2]
[347592145,1735935036174,-1478.09,0.00011879,2]
[347592147,1735935036184,-254.58670988,0.00011879,2]
[347592150,1735935036198,-500.0,0.00011879,2]
[347592152,1735935036209,-681.04,0.00011879,2]
[347592154,1735935036220,-500.0,0.00011879,2]
[347592156,1735935036230,-276.52,0.00011879,2]
[347592158,1735935036240,-500.0,0.00011879,2]
[347592160,1735935036251,-500.0,0.00011879,2]
[347592162,1735935036261,-158.94,0.00011879,2]
[347592164,1735935036271,-500.0,0.00011879,2]
[347592166,1735935036281,-346.48,0.00011879,2]
[347592168,1735935036292,-200.44,0.00011879,2]
[347592170,1735935036301,-500.0,0.00011879,2]
[347592172,1735935036311,-500.0,0.00011879,2]
[347592174,1735935036321,-722.15,0.00011879,2]
[347592176,1735935036330,-500.0,0.00011879,2]
[347592178,1735935036340,-264.41,0.00011879,2]
[347592180,1735935036350,-240.9,0.00011879,2]
[347592182,1735935036359,-500.0,0.00011879,2]
[347592184,1735935036369,-355.34,0.00011879,2]
[347592186,1735935036379,-500.0,0.00011879,2]
[347592188,1735935036392,-500.0,0.00011879,2]
[347592190,1735935036402,-500.0,0.00011879,2]
[347592192,1735935036412,-500.0,0.00011879,2]
[347592194,1735935036421,-500.0,0.00011879,2]
[347592196,1735935036431,-500.0,0.00011879,2]
[347592198,1735935036442,-500.0,0.00011879,2]
[347592200,1735935036451,-500.0,0.00011879,2]
[347592202,1735935036460,-500.0,0.00011879,2]
[347592204,1735935036470,-500.0,0.00011879,2]
[347592206,1735935036479,-500.0,0.00011879,2]
[347592208,1735935036489,-500.0,0.00011879,2]
[347592210,1735935036498,-500.0,0.00011879,2]
[347592212,1735935036508,-500.0,0.00011879,2]
[347592214,1735935036518,-500.0,0.00011879,2]
[347592216,1735935036527,-500.0,0.00011879,2]
[347592218,1735935036537,-188.26,0.00011879,2]
[347592220,1735935036546,-500.0,0.00011879,2]
[347592222,1735935036556,-500.0,0.00011879,2]
[347592224,1735935036565,-416.86875813,0.00011879,2]
[347592226,1735935036575,-500.0,0.00011879,2]
[347592228,1735935036584,-500.0,0.00011879,2]
[347592230,1735935036594,-208.82174514,0.00011879,2]
[347592232,1735935036604,-238.12,0.00011879,2]
[347592234,1735935036615,-500.0,0.00011879,2]
[347592236,1735935036624,-500.0,0.00011879,2]
[347592238,1735935036636,-500.0,0.00011879,2]
[347592240,1735935036648,-304.24,0.00011879,2]
[347592242,1735935036658,-500.0,0.00011879,2]
[347592245,1735935036669,-500.0,0.00011879,2]
[347592247,1735935036679,-500.0,0.00011879,2]
[347592249,1735935036690,-500.0,0.00011879,2]
[347592251,1735935036699,-500.0,0.00011879,2]
[347592252,1735935036709,-500.0,0.00011879,2]
[347592254,1735935036721,-500.0,0.00011879,2]
[347592256,1735935036730,-500.0,0.00011879,2]
[347592258,1735935036740,-55790.3408,0.0001188,2]
[347592260,1735935036749,-284.16973971,0.00011896,2]
[347592263,1735935036759,-500.0,0.00011896,2]
[347592265,1735935036768,-606.63,0.00011896,2]
[347592267,1735935036778,-500.0,0.00011896,2]
[347592269,1735935036787,-500.0,0.00011896,2]
[347592271,1735935036797,-500.0,0.00011896,2]
[347592273,1735935036806,-500.0,0.00011896,2]
[347592275,1735935036815,-500.0,0.00011896,2]
[347592276,1735935036824,-189.11,0.00011896,2]
[347592279,1735935036834,-500.0,0.00011896,2]
[347592280,1735935036844,-327.02,0.00011896,2]
[347592283,1735935036853,-176.68,0.00011896,2]
[347592285,1735935036863,-309.43,0.00011896,2]
[347592287,1735935036872,-179.86,0.00011896,2]
[347592288,1735935036881,-500.0,0.00011896,2]
[347592291,1735935036892,-500.0,0.00011896,2]
[347592293,1735935036902,-461.11,0.00011896,2]
[347592295,1735935036912,-500.0,0.00011896,2]
[347592296,1735935036921,-500.0,0.00011896,2]
[347592297,1735935036931,-500.0,0.00011896,2]
[347592298,1735935036940,-500.0,0.00011896,2]
[347592299,1735935036949,-500.0,0.00011896,2]
[347592300,1735935036958,-500.0,0.00011896,2]
[347592301,1735935036967,-500.0,0.00011896,2]
[347592302,1735935036976,-500.0,0.00011896,2]
[347592303,1735935036984,-500.0,0.00011896,2]
[347592304,1735935036993,-500.0,0.00011896,2]
[347592305,1735935037002,-578.95,0.00011896,2]
[347592306,1735935037011,-500.0,0.00011896,2]
[347592307,1735935037020,-500.0,0.00011896,2]
[347592308,1735935037030,-500.0,0.00011896,2]
[347592309,1735935037039,-500.0,0.00011896,2]
[347592310,1735935037048,-319.3,0.00011896,2]
[347592311,1735935037058,-500.0,0.00011896,2]
[347592313,1735935037066,-296.05,0.00011896,2]
[347592315,1735935037076,-500.0,0.00011896,2]
[347592317,1735935037085,-500.0,0.00011896,2]
[347592319,1735935037094,-500.0,0.00011896,2]
[347592321,1735935037104,-500.0,0.00011896,2]
[347592323,1735935037114,-500.0,0.00011896,2]
[347592325,1735935037124,-389.7,0.00011896,2]
[347592327,1735935037134,-500.0,0.00011896,2]
[347592329,1735935037144,-531.83,0.00011896,2]
[347592331,1735935037154,-500.0,0.00011896,2]
[347592333,1735935037163,-281.83,0.00011896,2]
[347592335,1735935037173,-977.34,0.00011896,2]
[347592337,1735935037183,-500.0,0.00011896,2]
[347592339,1735935037194,-500.0,0.00011896,2]
[347592341,1735935037204,-500.0,0.00011896,2]
[347592343,1735935037214,-500.0,0.00011896,2]
[347592345,1735935037224,-500.0,0.00011896,2]
[347592347,1735935037233,-500.0,0.00011896,2]
[347592349,1735935037242,-353.24,0.00011896,2]
[347592351,1735935037251,-500.0,0.00011896,2]
[347592353,1735935037261,-500.0,0.00011896,2]
[347592355,1735935037271,-500.0,0.00011896,2]
[347592357,1735935037280,-553.96,0.00011896,2]
[347592359,1735935037290,-500.0,0.00011896,2]
[347592361,1735935037300,-7500.0,0.00011896,2]
[347592363,1735935037309,-500.0,0.00011896,2]
[347592365,1735935037319,-900.89,0.00011896,2]
[347592367,1735935037329,-500.0,0.00011896,2]
[347592369,1735935037339,-500.0,0.00011896,2]
[347592371,1735935037348,-500.0,0.00011896,2]
[347592373,1735935037357,-911.11,0.00011896,2]
[347592375,1735935037366,-171.56,0.00011896,2]
[347592377,1735935037375,-500.0,0.00011896,2]
[347592379,1735935037384,-500.0,0.00011896,2]
[347592381,1735935037395,-500.0,0.00011896,2]
[347592384,1735935037406,-597.91,0.00011896,2]
[347592386,1735935037416,-500.0,0.00011896,2]
[347592388,1735935037426,-500.0,0.00011896,2]
[347592390,1735935037436,-537.23,0.00011896,2]
[347592392,1735935037445,-500.0,0.00011896,2]
[347592394,1735935037455,-318.35,0.00011896,2]
[347592396,1735935037464,-500.0,0.00011896,2]
[347592398,1735935037473,-500.0,0.00011896,2]
[347592400,1735935037484,-773.9,0.00011896,2]
[347592402,1735935037494,-500.0,0.00011896,2]
[347592404,1735935037508,-500.0,0.00011896,2]
[347592406,1735935037518,-500.0,0.00011896,2]
[347592408,1735935037533,-613.48,0.00011896,2]
[347592410,1735935037543,-500.0,0.00011896,2]
[347592412,1735935037552,-500.0,0.00011896,2]
[347592414,1735935037562,-500.0,0.00011896,2]
[347592416,1735935037572,-500.0,0.00011896,2]
[347592418,1735935037581,-500.0,0.00011896,2]
[347592420,1735935037591,-500.0,0.00011897,2]
[347592422,1735935037600,-1000.0,0.00011897,2]
[347592424,1735935037610,-500.0,0.00011897,2]
[347592426,1735935037620,-500.0,0.00011897,2]
[347592428,1735935037633,-996.79,0.00011897,2]
[347592430,1735935037650,-801.77,0.00011898,2]
[347592432,1735935037673,-500.0,0.00011899,2]
[347592434,1735935037688,-660.1068,0.000119,2]
[347592436,1735935037698,-172.17515648,0.000119,2]
[347592438,1735935037708,-3584.20609609,0.000119,2]
[347592439,1735935037717,-2000.0,0.00011904,2]
[347592442,1735935037727,-200.0,0.00011904,2]
[347592443,1735935037736,-163.99502135,0.00011973,2]
[347592446,1735935037746,-150.0,0.00011973,2]
[347592448,1735935037755,-150.0,0.00011973,2]
[347592450,1735935037764,-150.0,0.00011973,2]
[347592452,1735935037773,-500.0,0.00011979,2]
[347592454,1735935037782,-9725.79827557,0.0001198,2]
[347592457,1735935037803,-294.0,0.0001198,2]
[347592459,1735935037815,-16682.03235424,0.0001198,2]
[347592461,1735935037827,-3116.49737023,0.0001198,2]
[347592517,1735935038282,-915.47591036,0.0001198,2]
[347592533,1735935038440,-173.68126052,0.000119,2]
[347592535,1735935038450,-19107.89318948,0.0001198,2]
[347592538,1735935038461,-5967.78059905,0.0001198,2]
[347592540,1735935038471,-200.0,0.0001198,2]
[347592542,1735935038480,-200.0,0.0001198,2]
[347592544,1735935038489,-2000.0,0.0001198,2]
[347592546,1735935038499,-200.0,0.0001198,2]
[347592548,1735935038508,-3000.0,0.0001198,2]
[347592550,1735935038518,-2000.0,0.0001198,2]
[347592552,1735935038528,-200.0,0.0001198,2]
[347592554,1735935038538,-1879.13836765,0.0001199,2]
[347592558,1735935038566,-8129.28804785,0.0001199,2]
[347592560,1735935038577,-8528.79624224,0.0001199,2]
[347592562,1735935038589,-1471.20375776,0.0001199,2]
[347592564,1735935038598,-958.62,0.00011997,2]
[347592566,1735935038607,-500.0,0.00011997,2]
[347592568,1735935038617,-500.0,0.00011997,2]
[347592570,1735935038627,-443.55715302,0.00011997,2]
[347592572,1735935038642,-109.83284698,0.00011997,2]
[347592574,1735935038655,-237.47982474,0.00011997,2]
[347592577,1735935038666,-827.66017526,0.00011997,2]
[347592579,1735935038675,-543.75,0.00011997,2]
[347592581,1735935038686,-500.0,0.00011997,2]
[347592583,1735935038695,-500.0,0.00011997,2]
[347592585,1735935038704,-500.0,0.00011997,2]
[347592587,1735935038713,-500.0,0.00011997,2]
[347592588,1735935038723,-500.0,0.00011997,2]
[347592590,1735935038733,-500.0,0.00011997,2]
[347592593,1735935038744,-500.0,0.00011997,2]
[347592594,1735935038754,-500.0,0.00011997,2]
[347592596,1735935038763,-675.57,0.00011997,2]
[347592598,1735935038773,-593.14,0.00011997,2]
[347592600,1735935038781,-92.99547108,0.00011997,2]
[347592603,1735935038793,-702.73452892,0.00011997,2]
[347592606,1735935038802,-2708.49,0.00011997,2]
[347592609,1735935038811,-500.0,0.00011997,2]
[347592611,1735935038820,-500.0,0.00011997,2]
[347592613,1735935038829,-500.0,0.00011997,2]
[347592615,1735935038838,-1759.52,0.00011997,2]
[347592617,1735935038847,-500.0,0.00011997,2]
[347592619,1735935038856,-500.0,0.00011997,2]
[347592621,1735935038865,-500.0,0.00011997,2]
[347592623,1735935038874,-10440.5274071,0.00011998,2]
[347592760,1735935040289,-500.0,0.00011997,2]
[347592762,1735935040301,-690.24999996,0.00011998,2]
[347592775,1735935040448,-500.0,0.00011879,2]
[347592776,1735935040459,-10334.00000001,0.00011998,2]
[347593208,1735935046181,-500.0,0.00011799,2]
[347593210,1735935046191,-368.8542676,0.00011878,2]
[347593212,1735935046235,-131.1457324,0.00011878,2]
[347593213,1735935046244,-500.0,0.00011879,2]
[347593214,1735935046254,-500.0,0.00011879,2]
[347593215,1735935046263,-500.0,0.00011879,2]
[347593216,1735935046273,-16179.75588254,0.00011998,2]
[347593217,1735935046282,-500.0,0.00011999,2]
[347593218,1735935046291,-150.01527192,0.00011999,2]
[347593219,1735935046341,-349.98472808,0.00011999,2]
[347593220,1735935046351,-493.87679054,0.00011999,2]
[347593221,1735935046396,-275.994499,0.00011999,2]
[347593231,1735935275302,1000.0,0.00018,90]
[347593232,1735935294823,1000.0,0.0002,120]
[347593233,1735935303512,170.65912436,0.00011999,30]
[347593234,1735935303562,158.0,0.00011999,30]
[347593235,1735935304004,158.0,0.00012713,30]
[347593236,1735935326664,1000.0,0.00017,60]
[347593238,1735935511178,500.0,0.0002,120]
[347593239,1735935603823,151.0,0.00011999,30]
[347593240,1735935604017,159.0,0.00011999,30]
[347593241,1735935604142,151.0,0.00012624,30]
[347593243,1735935904218,151.0,0.00011999,30]
[347593244,1735935904535,151.0,0.00012713,30]
[347593245,1735935914725,2118.53918846,0.000121,30]
[347593246,1735936004123,-159.95118862,8.928e-05,2]
[347593249,1735936099195,59361.55042413,0.00012,30]
[347593252,1735936161090,-359.35881138,8.928e-05,2]
[347593253,1735936203600,151.0,8.928e-05,30]
[347593254,1735936203955,151.0,0.00010017,30]
[347593255,1735936204266,151.0,0.00011107,30]
[347593256,1735936204652,151.0,0.00012196,30]
[347593265,1735936231466,-152.0,0.00010039,3]
[347593266,1735936231475,-151.93,0.00010137,2]
[347593267,1735936231485,-82.319995,0.00010137,2]
[347593268,1735936231496,-455.07,0.00010137,2]
[347593269,1735936231508,-52.520005,0.00010137,2]
[347593270,1735936231518,-435.73,0.00010626,2]
[347593271,1735936231527,-609.11,0.00010671,2]
[347593272,1735936231537,-208.69374742,0.00010675,2]
[347593273,1735936231546,-154.24342154,0.00010775,2]
[347593274,1735936231556,-150.0,0.00010775,2]
[347593275,1735936231566,-150.00000001,0.00010775,2]
[347593276,1735936231575,-152.0,0.00010861,4]
[347593277,1735936231585,-307.05,0.0001087,2]
[347593278,1735936231595,-1000.0,0.00010881,2]
[347593279,1735936231605,-212.52,0.00010881,2]
[347593280,1735936231614,-164.12,0.00010885,2]
[347593281,1735936231625,-250.0,0.00010946,2]
[347593282,1735936231635,-243.99082832,0.00010974,2]
[347593283,1735936231646,-243.99082832,0.00010977,2]
[347593284,1735936231656,-400.0,0.00010986,2]
[347593285,1735936231666,-243.99082832,0.00010987,2]
[347593286,1735936231676,-243.99082832,0.00010987,2]
[347593287,1735936231685,-243.99082832,0.00010993,2]
[347593288,1735936231695,-243.99082832,0.00010998,2]
[347593289,1735936231705,-300.0,0.00011032,2]
[347593290,1735936231715,-250.0,0.00011033,2]
[347593291,1735936231724,-2943.3242561,0.00011033,2]
[347593292,1735936231744,-3816.3357439,0.00011033,2]
[347593293,1735936231753,-150.0,0.00011132,2]
[347593294,1735936231763,-5463.87,0.00011132,2]
[347593295,1735936231772,-150.99,0.00011132,2]
[347593296,1735936231781,-519.31,0.00011191,2]
[347593297,1735936231791,-183.69,0.00011391,2]
[347593298,1735936231800,-284.988,0.000114,2]
[347593299,1735936231809,-2751.0,0.00011507,2]
[347593300,1735936231818,-4207.0,0.00011526,2]
[347593301,1735936231828,-152.0,0.00011683,5]
[347593302,1735936231837,-200.0,0.00011749,2]
[347593303,1735936231846,-17954.3091,0.00011779,2]
[347593305,1735936231856,-1000.0,0.00011779,2]
[347593307,1735936231865,-500.0,0.00011779,2]
[347593308,1735936231875,-793.6056,0.00011779,2]
[347593309,1735936231885,-5000.0,0.00011796,2]
[347593310,1735936231896,-163.49352434,0.00011796,2]
[347593311,1735936231906,-500.0,0.00011799,2]
[347593312,1735936231915,-500.0,0.00011799,2]
[347593313,1735936231925,-500.0,0.00011799,2]
[347593314,1735936231934,-1075.05,0.00011799,2]
[347593315,1735936231944,-3499.19,0.00011799,2]
[347593316,1735936231953,-500.0,0.00011799,2]
[347593317,1735936231962,-500.0,0.00011799,2]
[347593318,1735936231971,-500.0,0.00011799,2]
[347593319,1735936231980,-500.0,0.00011799,2]
[347593320,1735936231989,-500.0,0.00011799,2]
[347593321,1735936231999,-688.04,0.00011799,2]
[347593322,1735936232008,-564.98,0.00011799,2]
[347593323,1735936232018,-692.53,0.00011799,2]
[347593324,1735936232027,-1000.0,0.00011799,2]
[347593325,1735936232036,-513.46,0.00011799,2]
[347593326,1735936232045,-1007.29,0.00011799,2]
[347593327,1735936232055,-163.49352434,0.00011831,2]
[347593328,1735936232064,-163.49352434,0.00011865,2]
[347593329,1735936232074,-500.0,0.00011878,2]
[347593330,1735936232085,-500.0,0.00011878,2]
[347593331,1735936232094,-502.34,0.00011878,2]
[347593332,1735936232104,-500.0,0.00011878,2]
[347593333,1735936232113,-500.0,0.00011878,2]
[347593334,1735936232122,-500.0,0.00011878,2]
[347593335,1735936232131,-500.0,0.00011878,2]
[347593336,1735936232141,-500.0,0.00011878,2]
[347593337,1735936232152,-500.0,0.00011878,2]
[347593338,1735936232161,-500.0,0.00011878,2]
[347593339,1735936232171,-500.0,0.00011878,2]
[347593340,1735936232179,-500.0,0.00011878,2]
[347593341,1735936232189,-500.0,0.00011878,2]
[347593342,1735936232198,-500.0,0.00011878,2]
[347593343,1735936232207,-500.0,0.00011878,2]
[347593344,1735936232216,-500.0,0.00011878,2]
[347593345,1735936232226,-500.0,0.00011878,2]
[347593346,1735936232235,-500.0,0.00011878,2]
[347593347,1735936232245,-500.0,0.00011878,2]
[347593348,1735936232254,-500.0,0.00011878,2]
[347593349,1735936232264,-500.0,0.00011878,2]
[347593350,1735936232273,-591.28,0.00011878,2]
[347593351,1735936232286,-500.0,0.00011878,2]
[347593352,1735936232296,-500.0,0.00011878,2]
[347593353,1735936232307,-500.0,0.00011878,2]
[347593354,1735936232316,-500.0,0.00011878,2]
[347593355,1735936232326,-500.0,0.00011878,2]
[347593356,1735936232335,-500.0,0.00011878,2]
[347593357,1735936232344,-500.0,0.00011878,2]
[347593358,1735936232354,-500.0,0.00011878,2]
[347593359,1735936232363,-500.0,0.00011878,2]
[347593360,1735936232372,-500.0,0.00011878,2]
[347593361,1735936232384,-500.0,0.00011878,2]
[347593362,1735936232395,-531.19,0.00011878,2]
[347593363,1735936232404,-500.0,0.00011878,2]
[347593364,1735936232415,-500.0,0.00011878,2]
[347593365,1735936232424,-500.0,0.00011878,2]
[347593366,1735936232433,-500.0,0.00011878,2]
[347593367,1735936232443,-500.0,0.00011878,2]
[347593368,1735936232451,-500.0,0.00011878,2]
[347593369,1735936232461,-500.0,0.00011878,2]
[347593370,1735936232470,-500.0,0.00011878,2]
[347593371,1735936232489,-500.0,0.00011878,2]
[347593372,1735936232500,-500.0,0.00011878,2]
[347593373,1735936232510,-500.0,0.00011878,2]
[347593374,1735936232519,-500.0,0.00011878,2]
[347593375,1735936232529,-500.0,0.00011878,2]
[347593376,1735936232538,-500.0,0.00011878,2]
[347593377,1735936232547,-500.0,0.00011878,2]
[347593378,1735936232557,-500.0,0.00011878,2]
[347593379,1735936232567,-500.0,0.00011878,2]
[347593380,1735936232577,-500.0,0.00011878,2]
[347593381,1735936232586,-712.07,0.00011878,2]
[347593382,1735936232595,-500.0,0.00011878,2]
[347593383,1735936232605,-500.0,0.00011878,2]
[347593384,1735936232614,-500.0,0.00011878,2]
[347593385,1735936232624,-500.0,0.00011878,2]
[347593386,1735936232634,-500.0,0.00011878,2]
[347593387,1735936232644,-500.0,0.00011878,2]
[347593388,1735936232654,-500.0,0.00011878,2]
[347593389,1735936232663,-500.0,0.00011878,2]
[347593390,1735936232673,-500.0,0.00011878,2]
[347593391,1735936232683,-500.0,0.00011878,2]
[347593392,1735936232693,-500.0,0.00011878,2]
[347593393,1735936232703,-500.0,0.00011878,2]
[347593394,1735936232713,-500.0,0.00011878,2]
[347593395,1735936232723,-500.0,0.00011878,2]
[347593396,1735936232732,-500.0,0.00011878,2]
[347593397,1735936232742,-500.0,0.00011878,2]
[347593398,1735936232753,-500.0,0.00011878,2]
[347593399,1735936232763,-679.82,0.00011878,2]
[347593400,1735936232773,-500.0,0.00011878,2]
[347593401,1735936232783,-500.0,0.00011878,2]
[347593402,1735936232793,-500.0,0.00011878,2]
[347593403,1735936232803,-500.0,0.00011878,2]
[347593404,1735936232812,-500.0,0.00011878,2]
[347593405,1735936232824,-500.0,0.00011878,2]
[347593406,1735936232834,-500.0,0.00011878,2]
[347593407,1735936232843,-500.0,0.00011878,2]
[347593408,1735936232853,-500.0,0.00011878,2]
[347593409,1735936232863,-500.0,0.00011878,2]
[347593410,1735936232874,-500.0,0.00011878,2]
[347593411,1735936232884,-613.64375269,0.00011879,2]
[347593412,1735936232895,-500.0,0.00011879,2]
[347593413,1735936232904,-500.0,0.00011879,2]
[347593414,1735936232914,-500.0,0.00011879,2]